fUSD/lending_fUSD_20250616
["ID","MTS","AMOUNT","RATE_DAILY","PERIOD"]
[366063083,1750043451168,-490.0,0.00016438,2]
[366063084,1750043451181,-549.63,0.00016438,2]
[366063085,1750043451190,-490.0,0.00016438,2]
[366063086,1750043451200,-490.0,0.00016438,2]
[366063087,1750043451212,-490.0,0.00016438,2]
[366063088,1750043451222,-490.0,0.00016438,2]
[366063089,1750043451231,-2422.64,0.00016438,2]
[366063090,1750043451240,-1150.56,0.00016438,2]
[366063091,1750043451250,-490.0,0.00016438,2]
[366063092,1750043451260,-490.0,0.00016438,2]
[366063093,1750043451270,-499.81602127,0.00016438,2]
[366063094,1750043451280,-583.67986013,0.00016438,2]
[366063095,1750043451290,-514.78,0.00016438,2]
[366063096,1750043451300,-15676.2231173,0.00016438,2]
[366063097,1750043452135,-1135.96567531,0.00016438,2]
[366063098,1750043453073,-540.84130465,0.00016438,2]
[366063099,1750043453099,-9977.52990274,0.00016438,2]
[366063100,1750043453112,-490.0,0.00016438,2]
[366063101,1750043453124,-490.0,0.00016438,2]
[366063102,1750043453135,-5196.59,0.00016438,2]
[366063103,1750043453147,-485.07535759,0.00016438,2]
[366063104,1750043453159,-3639.45,0.00016438,2]
[366063105,1750043453171,-597.69,0.00016438,2]
[366063106,1750043453183,-1495.35,0.00016438,2]
[366063107,1750043453195,-490.0,0.00016438,2]
[366063108,1750043453208,-493.56283741,0.00016438,2]
[366063109,1750043453222,-1085.66,0.00016438,2]
[366063110,1750043453233,-500.0,0.00016438,2]
[366063111,1750043453245,-505.4425894,0.00016438,2]
[366063112,1750043453258,-2160.86,0.00016438,2]
[366063113,1750043453271,-493.58944597,0.00016438,2]
[366063114,1750043453283,-1309.39,0.00016438,2]
[366063115,1750043453296,-490.0,0.00016438,2]
[366063116,1750043453308,-8198.5,0.00016438,2]
[366063117,1750043453320,-1429.87,0.00016438,2]
[366063118,1750043453331,-490.0,0.00016438,2]
[366063119,1750043453343,-1143.94,0.00016438,2]
[366063120,1750043453355,-490.0,0.00016438,2]
[366063121,1750043453367,-490.0,0.00016438,2]
[366063122,1750043453379,-620.76,0.00016438,2]
[366063123,1750043453391,-690.16,0.00016438,2]
[366063124,1750043453403,-490.0,0.00016438,2]
[366063125,1750043453414,-1871.95,0.00016438,2]
[366063126,1750043453426,-493.33,0.00016438,2]
[366063127,1750043453437,-7960.04,0.00016438,2]
[366063128,1750043453448,-490.0,0.00016438,2]
[366063129,1750043453459,-490.75384804,0.00016438,2]
[366063130,1750043453471,-1976.53,0.00016438,2]
[366063131,1750043453483,-490.0,0.00016438,2]
[366063132,1750043453495,-490.0,0.00016438,2]
[366063133,1750043453506,-490.0,0.00016438,2]
[366063134,1750043453518,-490.0,0.00016438,2]
[366063135,1750043453529,-2299.55,0.00016438,2]
[366063136,1750043453540,-490.0,0.00016438,2]
[366063137,1750043453552,-936.17,0.00016438,2]
[366063138,1750043453562,-1520.94,0.00016438,2]
[366063139,1750043453574,-490.0,0.00016438,2]
[366063140,1750043453586,-1244.79,0.00016438,2]
[366063141,1750043453597,-615.8110406,0.00016438,2]
[366063142,1750043453608,-328.641868,0.00016438,2]
[366063143,1750043453620,-1273.92,0.00016438,2]
[366063144,1750043453632,-3914.46,0.00016438,2]
[366063145,1750043453643,-2455.26,0.00016438,2]
[366063146,1750043453656,-151.0,0.00016438,2]
[366063147,1750043453668,-546.63,0.00016438,2]
[366063148,1750043453680,-490.0,0.00016438,2]
[366063149,1750043453691,-1413.72,0.00016438,2]
[366063150,1750043453703,-490.0,0.00016438,2]
[366063151,1750043453715,-574.45,0.00016438,2]
[366063152,1750043453726,-164.754017,0.00016438,2]
[366063153,1750043453738,-328.641868,0.00016438,2]
[366063154,1750043453750,-629.73,0.00016438,2]
[366063155,1750043453762,-842.61,0.00016438,2]
[366063156,1750043453775,-523.26,0.00016438,2]
[366063157,1750043453786,-555.57,0.00016438,2]
[366063158,1750043453797,-3231.74,0.00016438,2]
[366063159,1750043453809,-527.73,0.00016438,2]
[366063160,1750043453820,-164.754017,0.00016438,2]
[366063161,1750043453831,-490.0,0.00016438,2]
[366063162,1750043453842,-500.0,0.00016438,2]
[366063163,1750043453854,-500.0,0.00016438,2]
[366063164,1750043453866,-490.0,0.00016438,2]
[366063165,1750043453877,-508.148952,0.00016438,2]
[366063166,1750043453888,-935.79,0.00016438,2]
[366063167,1750043453899,-490.0,0.00016438,2]
[366063168,1750043453911,-1019.74,0.00016438,2]
[366063169,1750043453923,-499.7696759,0.00016438,2]
[366063170,1750043453935,-490.0,0.00016438,2]
[366063171,1750043453946,-490.0,0.00016438,2]
[366063172,1750043453957,-490.0,0.00016438,2]
[366063173,1750043453968,-490.0,0.00016438,2]
[366063174,1750043453979,-1564.15,0.00016438,2]
[366063175,1750043453991,-700.15,0.00016438,2]
[366063176,1750043454002,-781.98,0.00016438,2]
[366063177,1750043454013,-3059.65,0.00016438,2]
[366063178,1750043454024,-492.75518605,0.00016438,2]
[366063179,1750043454035,-903.38,0.00016438,2]
[366063180,1750043454047,-8767.78,0.00016438,2]
[366063181,1750043454059,-490.0,0.00016438,2]
[366063182,1750043454071,-490.0,0.00016438,2]
[366063183,1750043454082,-495.05416711,0.00016438,2]
[366063184,1750043454093,-903.38,0.00016438,2]
[366063185,1750043454104,-497.77917427,0.00016438,2]
[366063186,1750043454115,-903.38,0.00016438,2]
[366063187,1750043454126,-494.13090215,0.00016438,2]
[366063188,1750043454137,-903.38,0.00016438,2]
[366063189,1750043454149,-903.38,0.00016438,2]
[366063190,1750043454160,-2795.55,0.00016438,2]
[366063191,1750043454172,-903.38,0.00016438,2]
[366063192,1750043454183,-490.0,0.00016438,2]
[366063193,1750043454193,-607.53797371,0.00016438,2]
[366063194,1750043454205,-315.72082884,0.00016438,2]
[366063195,1750043454222,-490.0,0.00016438,2]
[366063196,1750043454233,-151.0,0.00016438,2]
[366063197,1750043454244,-587.26,0.00016438,2]
[366063198,1750043454255,-620.31,0.00016438,2]
[366063199,1750043454267,-490.0,0.00016438,2]
[366063200,1750043454278,-1044.53279381,0.00016438,2]
[366063201,1750043454296,-430.57720619,0.00016438,2]
[366063202,1750043454307,-2621.7,0.00016438,2]
[366063203,1750043454319,-4520.56,0.00016438,2]
[366063204,1750043454330,-490.0,0.00016438,2]
[366063205,1750043454342,-1496.39,0.00016438,2]
[366063206,1750043454354,-1327.64,0.00016438,2]
[366063207,1750043454366,-490.0,0.00016438,2]
[366063208,1750043454378,-1022.29,0.00016438,2]
[366063209,1750043454390,-493.07703891,0.00016438,2]
[366063210,1750043454402,-92.23324737,0.00016438,2]
[366063211,1750043454417,-397.76675263,0.00016438,2]
[366063212,1750043454430,-1612.29,0.00016438,2]
[366063213,1750043454443,-4222.27,0.00016438,2]
[366063214,1750043454457,-490.0,0.00016438,2]
[366063215,1750043454469,-443.35370027,0.00016438,2]
[366063216,1750043454481,-490.0,0.00016438,2]
[366063217,1750043454494,-24135.94,0.00016438,2]
[366063218,1750043454505,-817.5,0.00016438,2]
[366063219,1750043454517,-477.67363114,0.00016438,2]
[366063220,1750043454537,-12.32636886,0.00016438,2]
[366063221,1750043454548,-1015.41,0.00016438,2]
[366063222,1750043454560,-743.84616274,0.00016438,2]
[366063223,1750043454575,-214.43383726,0.00016438,2]
[366063224,1750043454587,-1007.10675473,0.00016438,2]
[366063225,1750043454599,-1450.69,0.00016438,2]
[366063226,1750043454611,-490.0,0.00016438,2]
[366063227,1750043454623,-846.17,0.00016438,2]
[366063228,1750043454635,-218.48538572,0.00016438,2]
[366063229,1750043454646,-497.62096239,0.00016438,2]
[366063230,1750043454658,-491.3710231,0.00016438,2]
[366063231,1750043454670,-547.44287011,0.00016438,2]
[366063232,1750043454682,-1836.17,0.00016438,2]
[366063233,1750043454694,-2181.84691658,0.00016438,2]
[366063234,1750043454723,-6947.05308342,0.00016438,2]
[366063235,1750043454735,-1597.43,0.00016438,2]
[366063236,1750043454748,-490.0,0.00016438,2]
[366063237,1750043454761,-1060.75,0.00016438,2]
[366063238,1750043454774,-16.52841676,0.00016438,2]
[366063239,1750043454790,-477.61158324,0.00016438,2]
[366063240,1750043454803,-490.0,0.00016438,2]
[366063241,1750043454815,-1583.54,0.00016438,2]
[366063242,1750043454827,-3581.5796377,0.00016438,2]
[366063243,1750043456506,-1233.5303623,0.00016438,2]
[366063244,1750043456516,-491.81798748,0.00016438,2]
[366063245,1750043456526,-938.59,0.00016438,2]
[366063246,1750043456535,-1133.05,0.00016438,2]
[366063247,1750043456545,-1845.44,0.00016438,2]
[366063248,1750043456555,-500.0,0.00016438,2]
[366063249,1750043456568,-500.0,0.00016438,2]
[366063250,1750043456577,-269.5945995,0.00016438,2]
[366063251,1750043456587,-490.0,0.00016438,2]
[366063252,1750043456596,-490.0,0.00016438,2]
[366063253,1750043456605,-156.89620895,0.00016438,2]
[366063254,1750043456615,-6588.49,0.00016438,2]
[366063255,1750043456624,-1073.94,0.00016438,2]
[366063256,1750043456634,-161.27755723,0.00016438,2]
[366063257,1750043456644,-1954.82,0.00016438,2]
[366063258,1750043456653,-493.43480682,0.00016438,2]
[366063259,1750043456663,-1507.53,0.00016438,2]
[366063260,1750043456675,-1474.53,0.00016438,2]
[366063261,1750043456685,-863.59,0.00016438,2]
[366063262,1750043456694,-2872.83,0.00016438,2]
[366063263,1750043456703,-19065.86,0.00016438,2]
[366063264,1750043456712,-490.0,0.00016438,2]
[366063265,1750043456722,-1210.5,0.00016438,2]
[366063266,1750043456732,-5650.03,0.00016438,2]
[366063267,1750043456741,-1096.94,0.00016438,2]
[366063268,1750043456751,-490.0,0.00016438,2]
[366063269,1750043456760,-534.90476328,0.00016438,2]
[366063270,1750043456770,-1548.42,0.00016438,2]
[366063271,1750043456780,-160.43696456,0.00016438,2]
[366063272,1750043456790,-490.0,0.00016438,2]
[366063273,1750043456800,-18876.97,0.00016438,2]
[366063274,1750043456809,-153.57249615,0.00016438,2]
[366063275,1750043456819,-1384.25,0.00016438,2]
[366063276,1750043456829,-491.33281858,0.00016438,2]
[366063277,1750043456839,-500.0,0.00016438,2]
[366063278,1750043456848,-657.16,0.00016438,2]
[366063279,1750043456860,-609.0,0.00016438,2]
[366063280,1750043456870,-490.0,0.00016438,2]
[366063281,1750043456879,-1677.08,0.00016438,2]
[366063282,1750043456889,-490.0,0.00016438,2]
[366063283,1750043456899,-492.22922425,0.00016438,2]
[366063284,1750043456908,-1069.16,0.00016438,2]
[366063285,1750043456917,-1209.48,0.00016438,2]
[366063286,1750043456927,-1987.57,0.00016438,2]
[366063287,1750043456937,-881.09,0.00016438,2]
[366063288,1750043456947,-490.0,0.00016438,2]
[366063289,1750043456956,-318.92013167,0.00016438,2]
[366063290,1750043456966,-199.54515643,0.00016438,2]
[366063291,1750043456976,-751.94,0.00016438,2]
[366063292,1750043456985,-2491.04,0.00016438,2]
[366063293,1750043456995,-626.87,0.00016438,2]
[366063294,1750043457004,-546.33,0.00016438,2]
[366063295,1750043457014,-2969.65,0.00016438,2]
[366063296,1750043457023,-492.36981799,0.00016438,2]
[366063297,1750043457033,-1212.92,0.00016438,2]
[366063298,1750043457043,-151.0,0.00016438,2]
[366063299,1750043457053,-567.64,0.00016438,2]
[366063300,1750043457062,-908.7,0.00016438,2]
[366063301,1750043457073,-20421.48,0.00016438,2]
[366063302,1750043457082,-490.0,0.00016438,2]
[366063303,1750043457091,-490.0,0.00016438,2]
[366063304,1750043457101,-151.0,0.00016438,2]
[366063305,1750043457110,-299.157756,0.00016438,2]
[366063306,1750043457120,-302.12,0.00016438,2]
[366063307,1750043457129,-300.13,0.00016438,2]
[366063308,1750043457139,-151.0,0.00016439,2]
[366063309,1750043457148,-151.0,0.00016439,2]
[366063310,1750043457157,-151.313147,0.00016439,2]
[366063311,1750043457167,-151.313147,0.00016439,2]
[366063312,1750043457176,-151.0,0.00016439,2]
[366063313,1750043457185,-156.902898,0.00016439,2]
[366063314,1750043457195,-156.902898,0.00016439,2]
[366063315,1750043457205,-380.61603,0.00016439,2]
[366063316,1750043457219,-380.61603,0.00016439,2]
[366063317,1750043457228,-447.220023,0.00016439,2]
[366063318,1750043457237,-329.095487,0.00016439,2]
[366063319,1750043457247,-447.220023,0.00016439,2]
[366063320,1750043457256,-237.037999,0.00016439,2]
[366063321,1750043457266,-329.095487,0.00016439,2]
[366063322,1750043457292,-237.037999,0.00016439,2]
[366063323,1750043457304,-151.0,0.00016439,2]
[366063324,1750043457314,-151.0,0.00016439,2]
[366063325,1750043457325,-978.297286,0.00016439,2]
[366063326,1750043457335,-151.0,0.00016439,2]
[366063327,1750043457345,-151.0,0.00016439,2]
[366063328,1750043457355,-978.297286,0.00016439,2]
[366063329,1750043457365,-151.0,0.00016439,2]
[366063330,1750043457375,-154.897254,0.00016439,2]
[366063331,1750043457385,-197.090474,0.00016439,2]
[366063332,1750043457395,-152.901615,0.00016439,2]
[366063333,1750043457405,-197.090474,0.00016439,2]
[366063334,1750043457416,-151.0,0.00016439,2]
[366063335,1750043457426,-151.0,0.00016439,2]
[366063336,1750043457436,-169.743312,0.00016439,2]
[366063337,1750043457446,-1812.159406,0.00016439,2]
[366063338,1750043457456,-169.743312,0.00016439,2]
[366063339,1750043457467,-1812.159406,0.00016439,2]
[366063340,1750043457476,-151.0,0.00016439,2]
[366063341,1750043457486,-325.500776,0.00016439,2]
[366063342,1750043457499,-325.500776,0.00016439,2]
[366063343,1750043457508,-233.791655,0.00016439,2]
[366063344,1750043457521,-151.0,0.00016439,2]
[366063345,1750043457532,-233.791655,0.00016439,2]
[366063346,1750043457542,-245.077124,0.00016439,2]
[366063347,1750043457553,-245.077124,0.00016439,2]
[366063348,1750043457563,-151.0,0.00016439,2]
[366063349,1750043457573,-289.225918,0.00016439,2]
[366063350,1750043457583,-328.641868,0.00016439,2]
[366063351,1750043457594,-151.0,0.00016439,2]
[366063352,1750043457605,-164.754017,0.00016439,2]
[366063353,1750043457616,-328.641868,0.00016439,2]
[366063354,1750043457628,-164.754017,0.00016439,2]
[366063355,1750043457638,-151.0,0.00016439,2]
[366063356,1750043457648,-151.0,0.00016439,2]
[366063357,1750043457659,-151.0,0.00016439,2]
[366063358,1750043457669,-1596.3018453,0.00016448,2]
[366063359,1750043457679,-150.90057207,0.00016448,2]
[366063360,1750043457690,-500.0,0.00016459,2]
[366063361,1750043457700,-200.0,0.00016459,2]
[366063362,1750043457717,-788.0,0.00016461,2]
[366063363,1750043457729,-160.05611048,0.00016461,2]
[366063364,1750043457739,-833.8156298,0.00016463,2]
[366063365,1750043457751,-500.0,0.00016464,2]
[366063366,1750043457764,-200.0,0.00016464,2]
[366063367,1750043457777,-150.90057207,0.00016464,2]
[366063368,1750043457787,-269.42428506,0.00016465,2]
[366063369,1750043457798,-500.0,0.00016465,2]
[366063370,1750043457808,-235.78951792,0.00016465,2]
[366063371,1750043457818,-500.0,0.00016465,2]
[366063372,1750043457830,-150.0,0.00016465,2]
[366063373,1750043457840,-500.0,0.00016465,2]
[366063374,1750043457850,-150.0,0.00016465,2]
[366063375,1750043457861,-500.0,0.00016465,2]
[366063376,1750043457872,-151.38769419,0.00016465,2]
[366063377,1750043457882,-150.0,0.00016465,2]
[366063378,1750043457893,-150.0,0.00016465,2]
[366063379,1750043457903,-500.0,0.00016465,2]
[366063380,1750043457914,-271.36631107,0.00016465,2]
[366063381,1750043457924,-215.18921971,0.00016465,2]
[366063382,1750043457935,-202.02296434,0.00016465,2]
[366063383,1750043457946,-150.0,0.00016465,2]
[366063384,1750043457956,-150.0,0.00016465,2]
[366063385,1750043457966,-500.0,0.00016465,2]
[366063386,1750043457979,-153.83797338,0.00016465,2]
[366063387,1750043457990,-150.0,0.00016465,2]
[366063388,1750043458000,-500.0,0.00016465,2]
[366063389,1750043458010,-602.18144539,0.00016465,2]
[366063390,1750043458020,-500.0,0.00016465,2]
[366063391,1750043458031,-150.0,0.00016465,2]
[366063392,1750043458042,-500.0,0.00016465,2]
[366063393,1750043458052,-500.0,0.00016467,2]
[366063394,1750043458062,-200.0,0.00016467,2]
[366063395,1750043458073,-501.25411926,0.00016473,2]
[366063396,1750043458084,-506.05562904,0.00016473,2]
[366063397,1750043458094,-519.0179401,0.00016473,2]
[366063398,1750043458104,-500.0,0.00016473,2]
[366063399,1750043458114,-497.31177758,0.00016473,2]
[366063400,1750043458125,-216.98554738,0.00016473,2]
[366063401,1750043458135,-504.77931919,0.00016473,2]
[366063402,1750043458146,-500.0,0.00016473,2]
[366063403,1750043458162,-500.0,0.00016473,2]
[366063404,1750043458172,-502.3598366,0.00016473,2]
[366063405,1750043458182,-500.0,0.00016473,2]
[366063406,1750043458193,-160.06977183,0.00016473,2]
[366063407,1750043458203,-500.0,0.00016473,2]
[366063408,1750043458217,-500.88906346,0.00016473,2]
[366063409,1750043458227,-500.0,0.00016473,2]
[366063410,1750043458238,-500.0,0.00016473,2]
[366063411,1750043458248,-500.0,0.00016473,2]
[366063412,1750043458258,-160.06522713,0.00016473,2]
[366063413,1750043458268,-500.0,0.00016473,2]
[366063414,1750043458279,-500.83138216,0.00016473,2]
[366063415,1750043458289,-500.0,0.00016473,2]
[366063416,1750043458300,-500.58067683,0.00016473,2]
[366063417,1750043458311,-500.0,0.00016473,2]
[366063418,1750043458322,-500.0,0.00016473,2]
[366063419,1750043458333,-160.06458142,0.00016473,2]
[366063420,1750043458342,-500.0,0.00016473,2]
[366063421,1750043458352,-500.0,0.00016473,2]
[366063422,1750043458363,-500.0,0.00016473,2]
[366063423,1750043458373,-2264.10087164,0.00016478,2]
[366063424,1750043458384,-150.90057207,0.0001648,2]
[366063425,1750043458394,-502.99785784,0.00016493,2]
[366063426,1750043458404,-500.0,0.00016493,2]
[366063427,1750043458414,-150.21843949,0.00016493,2]
[366063428,1750043458425,-500.0,0.00016493,2]
[366063429,1750043458435,-255.22464685,0.00016493,2]
[366063430,1750043458447,-500.0,0.00016493,2]
[366063431,1750043458457,-221.75673972,0.00016493,2]
[366063432,1750043458468,-150.0,0.00016493,2]
[366063433,1750043458478,-500.0,0.00016493,2]
[366063434,1750043458488,-150.0,0.00016493,2]
[366063435,1750043458498,-151.50687598,0.00016493,2]
[366063436,1750043458508,-500.0,0.00016493,2]
[366063437,1750043458519,-150.0,0.00016493,2]
[366063438,1750043458530,-500.0,0.00016493,2]
[366063439,1750043458541,-500.0,0.00016493,2]
[366063440,1750043458551,-155.70007218,0.00016493,2]
[366063441,1750043458562,-500.0,0.00016493,2]
[366063442,1750043458572,-150.90057207,0.00016496,2]
[366063443,1750043458582,-1000.0,0.00016499,2]
[366063444,1750043458599,-1186.14066629,0.000165,2]
[366063445,1750043458609,-413.0,0.000165,2]
[366063446,1750043458620,-51371.84501818,0.000165,2]
[366063447,1750043458631,-151.0,0.000165,2]
[366063448,1750043458641,-151.0,0.000165,2]
[366063449,1750043458651,-176.069224,0.000165,2]
[366063450,1750043458663,-151.0,0.000165,2]
[366063451,1750043458673,-151.994462,0.000165,2]
[366063452,1750043458683,-151.0,0.000165,2]
[366063453,1750043458694,-151.0,0.000165,2]
[366063454,1750043458704,-151.0,0.000165,2]
[366063455,1750043458714,-151.0,0.000165,2]
[366063456,1750043458725,-239.501862,0.000165,2]
[366063457,1750043458736,-239.501862,0.000165,2]
[366063458,1750043458747,-151.51884,0.000165,2]
[366063459,1750043458759,-151.51884,0.000165,2]
[366063460,1750043458772,-151.0,0.000165,2]
[366063461,1750043458783,-151.0,0.000165,2]
[366063462,1750043458793,-151.0,0.000165,2]
[366063463,1750043458804,-151.0,0.000165,2]
[366063464,1750043458815,-151.0,0.000165,2]
[366063465,1750043458824,-151.0,0.000165,2]
[366063466,1750043458835,-300.0,0.000165,6]
[366063467,1750043458846,-2438.582,0.00016502,2]
[366063468,1750043458856,-175.504129,0.00016506,2]
[366063469,1750043458867,-151.0,0.00016506,2]
[366063470,1750043458878,-946.0,0.00016506,2]
[366063471,1750043458888,-3333.0,0.00016506,2]
[366063472,1750043458900,-805.0,0.00016506,2]
[366063473,1750043458911,-640.384,0.00016506,2]
[366063474,1750043458921,-593.17,0.00016506,2]
[366063475,1750043458931,-558.0,0.00016506,2]
[366063476,1750043458942,-1277.0,0.00016506,2]
[366063477,1750043458953,-928.0,0.00016506,2]
[366063478,1750043458964,-2003.0,0.00016506,2]
[366063479,1750043458975,-1674.0,0.00016506,2]
[366063480,1750043458986,-156.567,0.00016506,2]
[366063481,1750043458996,-7112.0,0.00016506,2]
[366063482,1750043459007,-854.0,0.00016506,2]
[366063483,1750043459017,-4095.845,0.00016506,2]
[366063484,1750043459028,-884.0,0.00016506,2]
[366063485,1750043459045,-150.90057207,0.00016511,2]
[366063486,1750043459062,-153.04717657,0.0001652,2]
[366063487,1750043459074,-500.0,0.0001652,2]
[366063488,1750043459085,-500.0,0.0001652,2]
[366063489,1750043459095,-150.0,0.0001652,2]
[366063490,1750043459106,-501.97705487,0.0001652,2]
[366063491,1750043459117,-204.2092902,0.0001652,2]
[366063492,1750043459128,-500.0,0.0001652,2]
[366063493,1750043459138,-204.82075121,0.0001652,2]
[366063494,1750043459150,-500.0,0.0001652,2]
[366063495,1750043459163,-502.09842073,0.0001652,2]
[366063496,1750043459174,-500.0,0.0001652,2]
[366063497,1750043459184,-160.05611048,0.00016523,2]
[366063498,1750043459195,-151.98104517,0.00016525,2]
[366063499,1750043459205,-150.90057207,0.00016527,2]
[366063500,1750043459218,-150.0,0.0001653,2]
[366063501,1750043459227,-150.0,0.00016532,2]
[366063502,1750043459238,-2347.87260389,0.00016533,2]
[366063503,1750043459249,-978.297286,0.00016539,2]
[366063504,1750043459259,-978.297286,0.00016539,2]
[366063505,1750043459269,-150.90057207,0.00016543,2]
[366063506,1750043459279,-500.0,0.00016548,2]
[366063507,1750043459291,-200.0,0.00016548,2]
[366063508,1750043459301,-254.97170338,0.00016548,2]
[366063509,1750043459311,-500.0,0.00016548,2]
[366063510,1750043459322,-500.0,0.00016548,2]
[366063511,1750043459332,-217.88767181,0.00016548,2]
[366063512,1750043459341,-150.90057207,0.00016559,2]
[366063513,1750043459351,-150.90057207,0.00016574,2]
[366063514,1750043459362,-506.66426694,0.00016575,2]
[366063515,1750043459373,-526.37778934,0.00016575,2]
[366063516,1750043459383,-500.0,0.00016575,2]
[366063517,1750043459395,-230.309348,0.00016575,2]
[366063518,1750043459407,-230.309348,0.00016575,2]
[366063519,1750043459417,-151.0,0.00016583,2]
[366063520,1750043459427,-151.369044,0.00016583,2]
[366063521,1750043459437,-151.313147,0.00016583,2]
[366063522,1750043459448,-151.313147,0.00016583,2]
[366063523,1750043459457,-156.902898,0.00016583,2]
[366063524,1750043459468,-156.902898,0.00016583,2]
[366063525,1750043459478,-329.095487,0.00016583,2]
[366063526,1750043459488,-237.037999,0.00016583,2]
[366063527,1750043459498,-329.095487,0.00016583,2]
[366063528,1750043459507,-237.037999,0.00016583,2]
[366063529,1750043459517,-151.0,0.00016583,2]
[366063530,1750043459527,-1812.159406,0.00016583,2]
[366063531,1750043459537,-1812.159406,0.00016583,2]
[366063532,1750043459547,-325.500776,0.00016583,2]
[366063533,1750043459558,-325.500776,0.00016583,2]
[366063534,1750043459568,-500.0,0.00016584,2]
[366063535,1750043459577,-455.14447707,0.00016584,2]
[366063536,1750043459587,-160.05611048,0.00016585,2]
[366063537,1750043459598,-530.57250547,0.00016585,2]
[366063538,1750043459608,-500.0,0.00016585,2]
[366063539,1750043459619,-514.55,0.00016585,2]
[366063540,1750043459630,-903.38,0.00016585,2]
[366063541,1750043459640,-788.0,0.00016585,2]
[366063542,1750043459650,-151.0,0.00016586,2]
[366063543,1750043459660,-151.0,0.00016586,2]
[366063544,1750043459670,-151.0,0.00016586,2]
[366063545,1750043459680,-151.810822,0.00016586,2]
[366063546,1750043459690,-152.754306,0.00016586,2]
[366063547,1750043459700,-157.31186,0.00016586,2]
[366063548,1750043459710,-151.0,0.00016586,2]
[366063549,1750043459720,-151.0,0.00016586,2]
[366063550,1750043459730,-151.0,0.00016586,2]
[366063551,1750043459741,-202.840851,0.00016586,2]
[366063552,1750043459751,-202.840851,0.00016586,2]
[366063553,1750043459762,-151.404168,0.00016586,2]
[366063554,1750043459777,-1071.549339,0.00016586,2]
[366063555,1750043459787,-1071.549339,0.00016586,2]
[366063556,1750043459797,-151.0,0.00016586,2]
[366063557,1750043459808,-464.113894,0.00016586,2]
[366063558,1750043459818,-464.113894,0.00016586,2]
[366063559,1750043459829,-151.0,0.00016586,2]
[366063560,1750043459840,-151.0,0.00016586,2]
[366063561,1750043459849,-151.0,0.00016586,2]
[366063562,1750043459860,-151.0,0.00016586,2]
[366063563,1750043459871,-2434.74389024,0.00016588,2]
[366063564,1750043459881,-500.0,0.00016589,2]
[366063565,1750043459891,-500.0,0.00016589,2]
[366063566,1750043459901,-514.55,0.00016589,2]
[366063567,1750043459912,-903.38,0.00016589,2]
[366063568,1750043459923,-28397.3106081,0.0001659,2]
[366063569,1750043459944,-11073.0,0.0001659,2]
[366063570,1750043459987,-1207.5751296,0.0001659,2]
[366063571,1750043467774,-3993.55887511,0.0001553,2]
[366063572,1750043538158,8271.46109222,0.0002,30]
[366063573,1750043649074,2028.0,0.0002465,120]
[366063574,1750043683398,1000.0,0.0002,30]
[366063575,1750043691140,205.097747,0.00015451,2]
[366063576,1750043746357,200.0,0.0002465,120]
[366063578,1750043776237,150.0,0.0002465,120]
[366063579,1750043924696,188.27,0.00013699,2]
[366063581,1750044100773,7004.0,0.00024658,120]
[366063582,1750044173920,159.04,0.0002,30]
[366063583,1750044174421,1206.0,0.0002465,120]
[366063584,1750044241787,432.72198881,0.0002465,120]